[Event "Early-Titled-Tuesday-Blitz-November-28-2023"]
[Site "Chess.com"]
[Date "2023.11.28"]
[Round "1"]
[White "pinguino120"]
[Black "KChor05"]
[Result "1-0"]
[WhiteElo "2289"]
[BlackElo "2589"]
[TimeControl "180+1"]
[EndTime "8:08:30 PST"]
[Termination "pinguino120 won by resignation"]

1. Nf3 {[%clk 0:02:58.8]} 1... Nf6 {[%clk 0:02:59]} 2. b3 {[%clk 0:02:57]} 2...
g6 {[%clk 0:02:57.5]} 3. Bb2 {[%clk 0:02:56.8]} 3... Bg7 {[%clk 0:02:58.3]} 4.
e3 {[%clk 0:02:56.6]} 4... d6 {[%clk 0:02:58.7]} 5. Be2 {[%clk 0:02:56.6]} 5...
O-O {[%clk 0:02:58.7]} 6. O-O {[%clk 0:02:56.4]} 6... e5 {[%clk 0:02:58.8]} 7.
d4 {[%clk 0:02:55.3]} 7... e4 {[%clk 0:02:58.8]} 8. Nfd2 {[%clk 0:02:55]} 8...
Nbd7 {[%clk 0:02:58.6]} 9. c4 {[%clk 0:02:53.8]} 9... Qe7 {[%clk 0:02:57.6]} 10.
Nc3 {[%clk 0:02:53.1]} 10... c6 {[%clk 0:02:57.5]} 11. Qc2 {[%clk 0:02:45.6]}
11... Re8 {[%clk 0:02:57.3]} 12. Rfe1 {[%clk 0:02:16.7]} 12... Nf8 {[%clk
0:02:57.2]} 13. f3 {[%clk 0:02:05.1]} 13... d5 {[%clk 0:02:38.4]} 14. cxd5
{[%clk 0:02:02.9]} 14... cxd5 {[%clk 0:02:37.1]} 15. fxe4 {[%clk 0:02:01.1]}
15... dxe4 {[%clk 0:02:25.2]} 16. Nb5 {[%clk 0:01:56.5]} 16... Bh6 {[%clk
0:02:06.7]} 17. Nf1 {[%clk 0:01:45.8]} 17... Nd5 {[%clk 0:01:58.7]} 18. Ba3
{[%clk 0:01:42.6]} 18... Qg5 {[%clk 0:01:43]} 19. Bc4 {[%clk 0:01:29.6]} 19...
Be6 {[%clk 0:01:42.3]} 20. Qf2 {[%clk 0:01:18.3]} 20... a6 {[%clk 0:01:09]} 21.
Nd6 {[%clk 0:01:09.6]} 21... f5 {[%clk 0:01:03.2]} 22. Nxe8 {[%clk 0:01:04.8]}
22... Rxe8 {[%clk 0:01:04.1]} 23. Bd6 {[%clk 0:00:59]} 23... Bg7 {[%clk
0:00:53.9]} 24. Rac1 {[%clk 0:00:52.8]} 24... b5 {[%clk 0:00:53.9]} 25. Bxd5
{[%clk 0:00:51]} 25... Bxd5 {[%clk 0:00:54.8]} 26. Rc7 {[%clk 0:00:48.9]} 26...
Ne6 {[%clk 0:00:54.1]} 27. Ra7 {[%clk 0:00:45.6]} 27... Qd8 {[%clk 0:00:49.7]}
28. Be5 {[%clk 0:00:42.2]} 28... Qb6 {[%clk 0:00:45.4]} 29. Rd7 {[%clk 0:00:38]}
29... Bc6 {[%clk 0:00:39.3]} 30. Rd6 {[%clk 0:00:37.6]} 30... Bf8 {[%clk
0:00:36.3]} 31. Rc1 {[%clk 0:00:20.4]} 31... Bxd6 {[%clk 0:00:33.5]} 32. Bxd6
{[%clk 0:00:21.3]} 32... f4 {[%clk 0:00:27.1]} 33. exf4 {[%clk 0:00:16.5]} 33...
Bd5 {[%clk 0:00:19.4]} 34. Bc5 {[%clk 0:00:15.6]} 34... Nxc5 {[%clk 0:00:19]}
35. dxc5 {[%clk 0:00:16.1]} 35... Qe6 {[%clk 0:00:19]} 36. Ne3 {[%clk
0:00:16.2]} 36... Bc6 {[%clk 0:00:19.7]} 37. Qd2 {[%clk 0:00:16.2]} 37... Qe7
{[%clk 0:00:19.7]} 38. Qc3 {[%clk 0:00:16.1]} 38... Rd8 {[%clk 0:00:19.7]} 39.
Qa5 {[%clk 0:00:15.6]} 39... Rd3 {[%clk 0:00:19.5]} 40. Qb6 {[%clk 0:00:15.5]}
40... Qe6 {[%clk 0:00:18]} 41. Ng4 {[%clk 0:00:14.9]} 41... e3 {[%clk 0:00:16]}
42. Ne5 {[%clk 0:00:14]} 42... Rd2 {[%clk 0:00:15.3]} 43. Qxc6 {[%clk
0:00:13.5]} 43... Qxc6 {[%clk 0:00:14]} 44. Nxc6 {[%clk 0:00:13.8]} 44... e2
{[%clk 0:00:14.9]} 45. Re1 {[%clk 0:00:13.9]} 45... Rc2 {[%clk 0:00:13.8]} 46.
b4 {[%clk 0:00:14]} 46... Rxa2 {[%clk 0:00:12.4]} 47. Kf2 {[%clk 0:00:14.3]}
47... Rd2 {[%clk 0:00:11.6]} 48. Rxe2 {[%clk 0:00:14.4]} 48... Rd7 {[%clk
0:00:12.1]} 49. Re8+ {[%clk 0:00:13.9]} 49... Kf7 {[%clk 0:00:12.2]} 50. Ra8
{[%clk 0:00:12.3]} 50... Rd2+ {[%clk 0:00:10.2]} 51. Kf3 {[%clk 0:00:12.3]}
51... Ra2 {[%clk 0:00:10.9]} 52. Ra7+ {[%clk 0:00:11.7]} 52... Ke6 {[%clk
0:00:10.8]} 53. Ne5 {[%clk 0:00:12.6]} 53... Kd5 {[%clk 0:00:11.2]} 54. Rd7+
{[%clk 0:00:12.6]} 54... Ke6 {[%clk 0:00:10.9]} 55. Rd6+ {[%clk 0:00:12.4]}
55... Ke7 {[%clk 0:00:10.6]} 56. Rd7+ {[%clk 0:00:12]} 56... Ke6 {[%clk
0:00:10.5]} 57. c6 {[%clk 0:00:12.9]} 57... Rc2 {[%clk 0:00:09.4]} 58. c7 {[%clk
0:00:13]} 58... a5 {[%clk 0:00:08.3]} 59. bxa5 {[%clk 0:00:12.9]} 59... b4
{[%clk 0:00:09.2]} 60. a6 {[%clk 0:00:13]} 60... b3 {[%clk 0:00:09.6]} 61. Rd3
{[%clk 0:00:12.8]} 61... b2 {[%clk 0:00:09]} 62. Rb3 {[%clk 0:00:13.1]} 62...
Rxc7 {[%clk 0:00:06.3]} 63. Rxb2 {[%clk 0:00:12.6]} 63... Ra7 {[%clk 0:00:07.2]}
64. Rb6+ {[%clk 0:00:12.7]} 64... Kd5 {[%clk 0:00:07.9]} 65. Kg4 {[%clk
0:00:12.8]} 1-0

[Event "Early-Titled-Tuesday-Blitz-November-28-2023"]
[Site "Chess.com"]
[Date "2023.11.28"]
[Round "1"]
[White "tetrix83"]
[Black "rasmussvane"]
[Result "0-1"]
[WhiteElo "2514"]
[BlackElo "2987"]
[TimeControl "180+1"]
[EndTime "8:08:32 PST"]
[Termination "rasmussvane won on time"]

1. e4 {[%clk 0:03:00.9]} 1... c6 {[%clk 0:02:54.6]} 2. d4 {[%clk 0:03:00.3]}
2... d5 {[%clk 0:02:54.4]} 3. exd5 {[%clk 0:03:00.4]} 3... cxd5 {[%clk
0:02:54.5]} 4. Bd3 {[%clk 0:03:00.5]} 4... Nc6 {[%clk 0:02:54.2]} 5. c3 {[%clk
0:03:00.8]} 5... Nf6 {[%clk 0:02:51.2]} 6. h3 {[%clk 0:03:00.7]} 6... g6 {[%clk
0:02:44.7]} 7. Nf3 {[%clk 0:03:00.4]} 7... Bf5 {[%clk 0:02:43.6]} 8. Be2 {[%clk
0:03:00.8]} 8... Bg7 {[%clk 0:02:42.6]} 9. O-O {[%clk 0:03:00.9]} 9... O-O
{[%clk 0:02:42.3]} 10. Bf4 {[%clk 0:03:00.7]} 10... a6 {[%clk 0:02:42.2]} 11.
Nbd2 {[%clk 0:02:58.1]} 11... b5 {[%clk 0:02:24.2]} 12. a3 {[%clk 0:02:46.2]}
12... Qb6 {[%clk 0:02:23.3]} 13. Re1 {[%clk 0:02:23.9]} 13... Rfe8 {[%clk
0:02:18.9]} 14. Bf1 {[%clk 0:02:16.9]} 14... h6 {[%clk 0:02:11]} 15. g4 {[%clk
0:02:14.8]} 15... Bd7 {[%clk 0:02:10.3]} 16. Nb3 {[%clk 0:02:14.7]} 16... Na5
{[%clk 0:02:04.2]} 17. Nc5 {[%clk 0:02:13.6]} 17... Nb7 {[%clk 0:02:04.2]} 18.
b4 {[%clk 0:02:08.6]} 18... Nd6 {[%clk 0:02:00.8]} 19. Ne5 {[%clk 0:02:03.1]}
19... Bc6 {[%clk 0:01:53.9]} 20. Bg2 {[%clk 0:02:01.9]} 20... Nfe4 {[%clk
0:01:45.8]} 21. Qc2 {[%clk 0:01:48.9]} 21... a5 {[%clk 0:01:33.1]} 22. Nxc6
{[%clk 0:01:37.7]} 22... Qxc6 {[%clk 0:01:28.4]} 23. Bxd6 {[%clk 0:01:35.7]}
23... Nxd6 {[%clk 0:01:24.4]} 24. Qb3 {[%clk 0:01:28]} 24... e6 {[%clk
0:01:22.4]} 25. Ra2 {[%clk 0:01:24.9]} 25... Ra7 {[%clk 0:01:18.5]} 26. Rae2
{[%clk 0:01:21.7]} 26... axb4 {[%clk 0:01:11.6]} 27. axb4 {[%clk 0:01:21.6]}
27... Nc4 {[%clk 0:01:08.5]} 28. h4 {[%clk 0:01:17.4]} 28... Qd6 {[%clk
0:01:03.3]} 29. h5 {[%clk 0:01:11.5]} 29... g5 {[%clk 0:01:02.8]} 30. Ra2 {[%clk
0:01:06.2]} 30... Rea8 {[%clk 0:01:01.5]} 31. Rea1 {[%clk 0:01:01.1]} 31... Qc7
{[%clk 0:00:55.9]} 32. Qc2 {[%clk 0:00:46.7]} 32... Bf6 {[%clk 0:00:54.1]} 33.
Rxa7 {[%clk 0:00:34.3]} 33... Rxa7 {[%clk 0:00:55]} 34. Rxa7 {[%clk 0:00:34.5]}
34... Qxa7 {[%clk 0:00:55.9]} 35. Bf1 {[%clk 0:00:34.8]} 35... Nd6 {[%clk
0:00:54.1]} 36. Bd3 {[%clk 0:00:30.5]} 36... Kg7 {[%clk 0:00:52.4]} 37. Kg2
{[%clk 0:00:30.8]} 37... Qa1 {[%clk 0:00:47]} 38. Nd7 {[%clk 0:00:27.6]} 38...
Qa7 {[%clk 0:00:38.7]} 39. Nxf6 {[%clk 0:00:26.1]} 39... Kxf6 {[%clk 0:00:39.6]}
40. Qe2 {[%clk 0:00:26.6]} 40... Ke7 {[%clk 0:00:40]} 41. Qe5 {[%clk 0:00:26.6]}
41... f6 {[%clk 0:00:38.8]} 42. Qe3 {[%clk 0:00:25.8]} 42... Qc7 {[%clk
0:00:38]} 43. Bf5 {[%clk 0:00:25.5]} 43... Qc8 {[%clk 0:00:31.6]} 44. Bh7 {[%clk
0:00:18.8]} 44... Nc4 {[%clk 0:00:30.4]} 45. Qe2 {[%clk 0:00:19.1]} 45... Nd6
{[%clk 0:00:27.8]} 46. Bg6 {[%clk 0:00:19.2]} 46... Qxc3 {[%clk 0:00:26.6]} 47.
Bf5 {[%clk 0:00:18.4]} 47... Qc8 {[%clk 0:00:25]} 48. Bg6 {[%clk 0:00:18.4]}
48... Qc4 {[%clk 0:00:24.8]} 49. Qe3 {[%clk 0:00:17.6]} 49... Kd7 {[%clk
0:00:19.6]} 50. Bh7 {[%clk 0:00:17.2]} 50... Qc8 {[%clk 0:00:16.5]} 51. Qa3
{[%clk 0:00:16.4]} 51... Qc7 {[%clk 0:00:14.1]} 52. Qa8 {[%clk 0:00:15.4]} 52...
Qc8 {[%clk 0:00:12.7]} 53. Qa7+ {[%clk 0:00:15.5]} 53... Qb7 {[%clk 0:00:13.4]}
54. Qc5 {[%clk 0:00:14.7]} 54... Qc7 {[%clk 0:00:13.7]} 55. Bd3 {[%clk
0:00:12.1]} 55... Qxc5 {[%clk 0:00:12]} 56. dxc5 {[%clk 0:00:10.3]} 56... Nc4
{[%clk 0:00:12.4]} 57. Kf3 {[%clk 0:00:08.5]} 57... Ne5+ {[%clk 0:00:09.2]} 58.
Ke3 {[%clk 0:00:06.7]} 58... Nxg4+ {[%clk 0:00:09.5]} 59. Kd2 {[%clk 0:00:01.8]}
59... Kc6 {[%clk 0:00:08.8]} 60. Bg6 {[%clk 0:00:02.1]} 60... Nxf2 {[%clk
0:00:08.4]} 61. Be8+ {[%clk 0:00:02.4]} 61... Kc7 {[%clk 0:00:08.7]} 62. Bxb5
{[%clk 0:00:03.3]} 62... g4 {[%clk 0:00:07.5]} 63. Bf1 {[%clk 0:00:02.6]} 63...
Kc6 {[%clk 0:00:06.2]} 64. Ke3 {[%clk 0:00:02.3]} 64... g3 {[%clk 0:00:05.9]}
65. Kf3 {[%clk 0:00:02.3]} 65... Ne4 {[%clk 0:00:06.5]} 0-1

[Event "Early-Titled-Tuesday-Blitz-November-28-2023"]
[Site "Chess.com"]
[Date "2023.11.28"]
[Round "1"]
[White "KejJaj"]
[Black "JuniorJumper"]
[Result "0-1"]
[WhiteElo "2149"]
[BlackElo "2549"]
[TimeControl "180+1"]
[EndTime "8:08:34 PST"]
[Termination "JuniorJumper won by resignation"]

1. d4 {[%clk 0:03:00.9]} 1... Nf6 {[%clk 0:02:52.4]} 2. Bf4 {[%clk 0:03:01.4]}
2... e6 {[%clk 0:02:52.4]} 3. e3 {[%clk 0:03:00.5]} 3... d5 {[%clk 0:02:53.1]}
4. Nf3 {[%clk 0:02:58.6]} 4... Bd6 {[%clk 0:02:37.1]} 5. Nbd2 {[%clk 0:02:57.1]}
5... O-O {[%clk 0:02:35.8]} 6. Bg3 {[%clk 0:02:55.8]} 6... c5 {[%clk 0:02:34.9]}
7. c3 {[%clk 0:02:55.3]} 7... b6 {[%clk 0:02:33.6]} 8. Ne5 {[%clk 0:02:38.3]}
8... Bb7 {[%clk 0:02:07.5]} 9. Bd3 {[%clk 0:02:37.5]} 9... Nc6 {[%clk
0:02:05.5]} 10. Qf3 {[%clk 0:02:22]} 10... Qc7 {[%clk 0:01:37.8]} 11. Ng4 {[%clk
0:02:14]} 11... Nxg4 {[%clk 0:01:31.3]} 12. Qxg4 {[%clk 0:02:10.7]} 12... f5
{[%clk 0:01:17.8]} 13. Qf3 {[%clk 0:02:01.9]} 13... Rae8 {[%clk 0:00:58.8]} 14.
O-O {[%clk 0:02:00.2]} 14... f4 {[%clk 0:00:47.8]} 15. exf4 {[%clk 0:01:41.6]}
15... cxd4 {[%clk 0:00:45.4]} 16. Qh5 {[%clk 0:01:26.2]} 16... g6 {[%clk
0:00:42.2]} 17. Qh3 {[%clk 0:01:21.8]} 17... dxc3 {[%clk 0:00:41.2]} 18. bxc3
{[%clk 0:01:21.3]} 18... Bxf4 {[%clk 0:00:41.8]} 19. Bxf4 {[%clk 0:01:20.3]}
19... Qxf4 {[%clk 0:00:42.5]} 20. Nf3 {[%clk 0:01:17.9]} 20... e5 {[%clk
0:00:41.5]} 21. Bb5 {[%clk 0:01:05.4]} 21... a6 {[%clk 0:00:20.7]} 22. Ba4
{[%clk 0:00:59.3]} 22... b5 {[%clk 0:00:20.8]} 23. Bb3 {[%clk 0:00:59.1]} 23...
Na5 {[%clk 0:00:19.9]} 24. Qd7 {[%clk 0:00:55.9]} 24... Qf7 {[%clk 0:00:18.5]}
25. Qg4 {[%clk 0:00:47.3]} 25... Nxb3 {[%clk 0:00:15.4]} 26. axb3 {[%clk
0:00:48.2]} 26... Bc8 {[%clk 0:00:12.3]} 27. Qh4 {[%clk 0:00:44]} 27... e4
{[%clk 0:00:08.7]} 28. Ng5 {[%clk 0:00:43.3]} 28... Qg7 {[%clk 0:00:08.6]} 29.
Rac1 {[%clk 0:00:39.5]} 29... h6 {[%clk 0:00:08.5]} 30. Nh3 {[%clk 0:00:37.5]}
30... g5 {[%clk 0:00:08.9]} 31. Qh5 {[%clk 0:00:28.4]} 31... Bf5 {[%clk
0:00:04.9]} 32. Kh1 {[%clk 0:00:21.7]} 32... Bg6 {[%clk 0:00:05]} 33. Qe2 {[%clk
0:00:19.7]} 33... Bf5 {[%clk 0:00:03.5]} 34. Ng1 {[%clk 0:00:20]} 34... g4
{[%clk 0:00:03.5]} 35. Qe3 {[%clk 0:00:15.9]} 35... h5 {[%clk 0:00:04.2]} 36.
Rfd1 {[%clk 0:00:14.1]} 36... Be6 {[%clk 0:00:04.6]} 37. Rf1 {[%clk 0:00:12.5]}
37... Kh8 {[%clk 0:00:05.1]} 38. Ne2 {[%clk 0:00:12.4]} 38... Rf3 {[%clk
0:00:05.3]} 39. gxf3 {[%clk 0:00:10.1]} 39... gxf3 {[%clk 0:00:05.9]} 40. Ng3
{[%clk 0:00:09.3]} 40... h4 {[%clk 0:00:05.2]} 41. Rg1 {[%clk 0:00:09.6]} 41...
hxg3 {[%clk 0:00:05.1]} 42. Rxg3 {[%clk 0:00:10.5]} 42... Qf6 {[%clk 0:00:04.1]}
43. Rcg1 {[%clk 0:00:08.5]} 43... Re7 {[%clk 0:00:04.6]} 44. Qb6 {[%clk
0:00:04.9]} 44... Kh7 {[%clk 0:00:02]} 45. Qd8 {[%clk 0:00:04.5]} 45... Rf7
{[%clk 0:00:01.6]} 46. Qxf6 {[%clk 0:00:03.6]} 46... Rxf6 {[%clk 0:00:01.9]} 47.
Rg7+ {[%clk 0:00:04.5]} 47... Kh6 {[%clk 0:00:02.1]} 48. R7g3 {[%clk 0:00:03.5]}
48... Bf5 {[%clk 0:00:01.7]} 49. Rg8 {[%clk 0:00:01.8]} 49... Rg6 {[%clk
0:00:01.8]} 50. Rh8+ {[%clk 0:00:02.1]} 50... Kg7 {[%clk 0:00:02.5]} 51. Rc8
{[%clk 0:00:01.7]} 51... Rxg1+ {[%clk 0:00:02.7]} 52. Kxg1 {[%clk 0:00:01.6]}
52... Bxc8 {[%clk 0:00:03.6]} 53. h4 {[%clk 0:00:01.8]} 53... Kf6 {[%clk
0:00:04.5]} 54. Kh2 {[%clk 0:00:01.2]} 54... Ke5 {[%clk 0:00:05.4]} 55. Kg3
{[%clk 0:00:01.6]} 55... Bf5 {[%clk 0:00:06.3]} 56. h5 {[%clk 0:00:01.5]} 56...
d4 {[%clk 0:00:07.2]} 57. cxd4+ {[%clk 0:00:01.2]} 57... Kxd4 {[%clk 0:00:08.1]}
58. Kf4 {[%clk 0:00:01.7]} 58... Bh7 {[%clk 0:00:09]} 59. Kg5 {[%clk 0:00:02.2]}
59... e3 {[%clk 0:00:09.6]} 60. fxe3+ {[%clk 0:00:02.2]} 60... Kxe3 {[%clk
0:00:10.5]} 61. Kh6 {[%clk 0:00:02.8]} 61... Bd3 {[%clk 0:00:10.8]} 62. Kg7
{[%clk 0:00:03]} 62... f2 {[%clk 0:00:11.7]} 63. h6 {[%clk 0:00:03.6]} 63...
f1=Q {[%clk 0:00:12.6]} 64. h7 {[%clk 0:00:04.1]} 64... Bxh7 {[%clk 0:00:13.3]}
65. Kxh7 {[%clk 0:00:04.2]} 65... Qd3+ {[%clk 0:00:14.2]} 0-1

[Event "Early-Titled-Tuesday-Blitz-November-28-2023"]
[Site "Chess.com"]
[Date "2023.11.28"]
[Round "1"]
[White "adapodadei"]
[Black "VitaliyChayka"]
[Result "1-0"]
[WhiteElo "2726"]
[BlackElo "2417"]
[TimeControl "180+1"]
[EndTime "8:08:37 PST"]
[Termination "adapodadei won on time"]

1. Nf3 {[%clk 0:03:00.9]} 1... d5 {[%clk 0:02:49]} 2. c4 {[%clk 0:03:00.3]} 2...
e6 {[%clk 0:02:47.4]} 3. g3 {[%clk 0:03:00.1]} 3... Nf6 {[%clk 0:02:45.5]} 4.
Bg2 {[%clk 0:03:00.5]} 4... c6 {[%clk 0:02:45.3]} 5. O-O {[%clk 0:02:58.6]} 5...
Be7 {[%clk 0:02:42.2]} 6. b3 {[%clk 0:02:57.2]} 6... O-O {[%clk 0:02:40.8]} 7.
Bb2 {[%clk 0:02:57.4]} 7... Nbd7 {[%clk 0:02:39.4]} 8. d4 {[%clk 0:02:57.3]}
8... a6 {[%clk 0:02:38]} 9. Nc3 {[%clk 0:02:57]} 9... b5 {[%clk 0:02:37.4]} 10.
Nd2 {[%clk 0:02:57.7]} 10... bxc4 {[%clk 0:02:33]} 11. bxc4 {[%clk 0:02:57.4]}
11... Rb8 {[%clk 0:02:33.2]} 12. Qc2 {[%clk 0:02:56.8]} 12... a5 {[%clk
0:02:19]} 13. e4 {[%clk 0:02:56.7]} 13... Ba6 {[%clk 0:02:15.1]} 14. Rfd1 {[%clk
0:02:56.7]} 14... Qc7 {[%clk 0:02:04.9]} 15. Rac1 {[%clk 0:02:49.4]} 15... Rfc8
{[%clk 0:02:04.3]} 16. e5 {[%clk 0:02:44]} 16... Ne8 {[%clk 0:02:01.8]} 17. c5
{[%clk 0:02:35.4]} 17... g6 {[%clk 0:01:54.9]} 18. Nb3 {[%clk 0:02:27]} 18...
Ng7 {[%clk 0:01:51.8]} 19. Rb1 {[%clk 0:02:12.4]} 19... h6 {[%clk 0:01:44.4]}
20. Bc1 {[%clk 0:02:11.8]} 20... Kh7 {[%clk 0:01:44.2]} 21. Bd2 {[%clk
0:02:11.5]} 21... Nf5 {[%clk 0:01:35.2]} 22. Be1 {[%clk 0:02:02.7]} 22... Qd8
{[%clk 0:01:18.8]} 23. Na4 {[%clk 0:01:58.6]} 23... h5 {[%clk 0:00:59.6]} 24.
Bxa5 {[%clk 0:01:42.3]} 24... Qf8 {[%clk 0:00:57.2]} 25. Nb6 {[%clk 0:01:25.9]}
25... Rb7 {[%clk 0:00:49.7]} 26. Nxd7 {[%clk 0:01:17.9]} 26... Rxd7 {[%clk
0:00:47.7]} 27. Bc3 {[%clk 0:01:17.8]} 27... Ra7 {[%clk 0:00:44.7]} 28. Nd2
{[%clk 0:00:51.5]} 28... Rca8 {[%clk 0:00:43.6]} 29. a3 {[%clk 0:00:48.7]} 29...
Bb5 {[%clk 0:00:40.8]} 30. Qc1 {[%clk 0:00:29]} 30... Rxa3 {[%clk 0:00:38.9]}
31. Nf3 {[%clk 0:00:28.9]} 31... R3a4 {[%clk 0:00:37.7]} 32. Qd2 {[%clk
0:00:22.5]} 32... Qh6 {[%clk 0:00:35.9]} 33. Qxh6+ {[%clk 0:00:19.2]} 33... Kxh6
{[%clk 0:00:36.8]} 34. Bf1 {[%clk 0:00:19.5]} 34... Bxf1 {[%clk 0:00:34.9]} 35.
Kxf1 {[%clk 0:00:20.4]} 35... Rc4 {[%clk 0:00:34.5]} 36. Rdc1 {[%clk 0:00:20.3]}
36... Bd8 {[%clk 0:00:33.9]} 37. Bd2+ {[%clk 0:00:20.3]} 37... Kg7 {[%clk
0:00:30.3]} 38. Rxc4 {[%clk 0:00:21]} 38... dxc4 {[%clk 0:00:30.1]} 39. Rc1
{[%clk 0:00:21.6]} 39... Ra4 {[%clk 0:00:28.2]} 40. h3 {[%clk 0:00:22.2]} 40...
Ne7 {[%clk 0:00:26]} 41. Bg5 {[%clk 0:00:21.6]} 41... Kf8 {[%clk 0:00:24.6]} 42.
Nd2 {[%clk 0:00:20.4]} 42... c3 {[%clk 0:00:23.3]} 43. Nb3 {[%clk 0:00:19.1]}
43... Rb4 {[%clk 0:00:23]} 44. Rxc3 {[%clk 0:00:18.7]} 44... Ke8 {[%clk
0:00:21.8]} 45. Bxe7 {[%clk 0:00:18.7]} 45... Kxe7 {[%clk 0:00:20.5]} 46. Ke2
{[%clk 0:00:19.3]} 46... Kd7 {[%clk 0:00:18.9]} 47. Kd3 {[%clk 0:00:19.7]} 47...
Ra4 {[%clk 0:00:16.9]} 48. Nd2 {[%clk 0:00:19.7]} 48... Ra2 {[%clk 0:00:16.5]}
49. Rc2 {[%clk 0:00:19.7]} 49... Ra3+ {[%clk 0:00:16.4]} 50. Ke2 {[%clk
0:00:20.3]} 50... Ba5 {[%clk 0:00:15.5]} 51. Ne4 {[%clk 0:00:20.4]} 51... Ra4
{[%clk 0:00:14.3]} 52. Ke3 {[%clk 0:00:16.1]} 52... Ra3+ {[%clk 0:00:14.1]} 53.
Kf4 {[%clk 0:00:11.1]} 53... Rd3 {[%clk 0:00:12.6]} 54. Rc4 {[%clk 0:00:10.4]}
54... Bc7 {[%clk 0:00:10.8]} 55. Ra4 {[%clk 0:00:09.9]} 55... Ke7 {[%clk
0:00:09.3]} 56. h4 {[%clk 0:00:10.4]} 56... Kd7 {[%clk 0:00:09]} 57. Nd6 {[%clk
0:00:10.5]} 57... Rd2 {[%clk 0:00:05.4]} 58. Ke3 {[%clk 0:00:10.8]} 58... Rd1
{[%clk 0:00:05.4]} 59. Nxf7 {[%clk 0:00:10.9]} 59... Rc1 {[%clk 0:00:03.2]} 60.
Nd6 {[%clk 0:00:10.6]} 60... Rd1 {[%clk 0:00:01.6]} 61. Ra8 {[%clk 0:00:10.3]}
1-0

[Event "Early-Titled-Tuesday-Blitz-November-28-2023"]
[Site "Chess.com"]
[Date "2023.11.28"]
[Round "1"]
[White "deribas12345"]
[Black "IsaqueGoncalvesSanto"]
[Result "1-0"]
[WhiteElo "2530"]
[BlackElo "1897"]
[TimeControl "180+1"]
[EndTime "8:08:42 PST"]
[Termination "deribas12345 won on time"]

1. d4 {[%clk 0:03:00.9]} 1... e6 {[%clk 0:02:58.7]} 2. c4 {[%clk 0:03:01]} 2...
d5 {[%clk 0:02:58.7]} 3. Nc3 {[%clk 0:03:00.8]} 3... c6 {[%clk 0:02:58.8]} 4.
Nf3 {[%clk 0:02:59.2]} 4... dxc4 {[%clk 0:02:58.7]} 5. a4 {[%clk 0:02:57.8]}
5... Bb4 {[%clk 0:02:57.7]} 6. e3 {[%clk 0:02:57.2]} 6... b5 {[%clk 0:02:57.5]}
7. Be2 {[%clk 0:02:54.8]} 7... Nf6 {[%clk 0:02:53.9]} 8. O-O {[%clk 0:02:54.5]}
8... O-O {[%clk 0:02:53.2]} 9. axb5 {[%clk 0:02:53.6]} 9... Bxc3 {[%clk
0:02:53.2]} 10. bxc3 {[%clk 0:02:53.9]} 10... cxb5 {[%clk 0:02:53.2]} 11. Ba3
{[%clk 0:02:51.7]} 11... Re8 {[%clk 0:02:50.6]} 12. Ne5 {[%clk 0:02:51.8]} 12...
Bb7 {[%clk 0:02:45.9]} 13. Rb1 {[%clk 0:02:50]} 13... Qa5 {[%clk 0:02:12.2]} 14.
Bb4 {[%clk 0:02:25.4]} 14... Qc7 {[%clk 0:02:11.3]} 15. Bf3 {[%clk 0:02:18.6]}
15... Bxf3 {[%clk 0:02:07]} 16. Qxf3 {[%clk 0:02:18.2]} 16... Nbd7 {[%clk
0:02:05.7]} 17. Nxd7 {[%clk 0:02:15.9]} 17... Qxd7 {[%clk 0:02:02.9]} 18. e4
{[%clk 0:02:15.9]} 18... a5 {[%clk 0:01:58.5]} 19. Bc5 {[%clk 0:02:15.7]} 19...
Reb8 {[%clk 0:01:55.6]} 20. Rfe1 {[%clk 0:02:11.9]} 20... Qc6 {[%clk 0:01:50.9]}
21. Be7 {[%clk 0:02:10.8]} 21... Nd7 {[%clk 0:01:42.3]} 22. d5 {[%clk
0:02:09.2]} 22... exd5 {[%clk 0:01:27.4]} 23. exd5 {[%clk 0:02:10.1]} 23... Qg6
{[%clk 0:01:26.1]} 24. d6 {[%clk 0:02:06.2]} 24... b4 {[%clk 0:01:20]} 25. cxb4
{[%clk 0:02:05]} 25... axb4 {[%clk 0:01:14.1]} 26. Rxb4 {[%clk 0:02:02.1]} 26...
Rxb4 {[%clk 0:01:11.4]} 27. Qxa8+ {[%clk 0:02:01.4]} 27... Rb8 {[%clk
0:01:11.1]} 28. Qa7 {[%clk 0:01:53.3]} 28... Qb1 {[%clk 0:00:47.6]} 29. Qe3
{[%clk 0:01:29.9]} 29... Qb3 {[%clk 0:00:43]} 30. Rc1 {[%clk 0:01:12.8]} 30...
Qxe3 {[%clk 0:00:40.7]} 31. fxe3 {[%clk 0:01:12.5]} 31... Rc8 {[%clk 0:00:40.7]}
32. Kf2 {[%clk 0:01:09.3]} 32... f6 {[%clk 0:00:40.8]} 33. Ke2 {[%clk
0:01:07.1]} 33... Kf7 {[%clk 0:00:40.7]} 34. Ra1 {[%clk 0:01:03.6]} 34... Ke6
{[%clk 0:00:39.9]} 35. Kd2 {[%clk 0:00:53]} 35... Ne5 {[%clk 0:00:33]} 36. Kc3
{[%clk 0:00:51.1]} 36... Nc6 {[%clk 0:00:32.4]} 37. Ra4 {[%clk 0:00:39]} 37...
Nxe7 {[%clk 0:00:31.7]} 38. dxe7 {[%clk 0:00:39.9]} 38... Kxe7 {[%clk
0:00:31.5]} 39. Ra7+ {[%clk 0:00:36.8]} 39... Kf8 {[%clk 0:00:28.5]} 40. h4
{[%clk 0:00:35.8]} 40... h6 {[%clk 0:00:27.6]} 41. h5 {[%clk 0:00:35.4]} 41...
Rc5 {[%clk 0:00:26.7]} 42. Ra4 {[%clk 0:00:16.1]} 42... Rxh5 {[%clk 0:00:26]}
43. Rxc4 {[%clk 0:00:16.4]} 43... Rg5 {[%clk 0:00:25.4]} 44. g4 {[%clk
0:00:16.7]} 44... Kf7 {[%clk 0:00:23.8]} 45. Kd3 {[%clk 0:00:17.1]} 45... Kg6
{[%clk 0:00:23.5]} 46. Ke2 {[%clk 0:00:17.4]} 46... Re5 {[%clk 0:00:20.8]} 47.
Kf3 {[%clk 0:00:17.5]} 47... Kg5 {[%clk 0:00:20.7]} 48. Rc7 {[%clk 0:00:17.8]}
48... g6 {[%clk 0:00:20.6]} 49. Rc4 {[%clk 0:00:18]} 49... h5 {[%clk 0:00:19.6]}
50. gxh5 {[%clk 0:00:18.1]} 50... Kxh5 {[%clk 0:00:20.1]} 51. Rc1 {[%clk
0:00:17.4]} 51... Kg5 {[%clk 0:00:20.2]} 52. Rg1+ {[%clk 0:00:17.2]} 52... Kf5
{[%clk 0:00:20.1]} 53. e4+ {[%clk 0:00:17.6]} 53... Rxe4 {[%clk 0:00:17.6]} 54.
Rxg6 {[%clk 0:00:17.8]} 54... Rf4+ {[%clk 0:00:14.6]} 55. Ke3 {[%clk 0:00:17.9]}
55... Rf1 {[%clk 0:00:13.1]} 56. Rg2 {[%clk 0:00:15.9]} 56... Ke5 {[%clk
0:00:11.7]} 57. Ra2 {[%clk 0:00:12.4]} 57... f5 {[%clk 0:00:10.4]} 58. Ra5+
{[%clk 0:00:12.5]} 58... Kf6 {[%clk 0:00:10.3]} 59. Ra8 {[%clk 0:00:11.4]} 59...
Kg5 {[%clk 0:00:10]} 60. Ke2 {[%clk 0:00:11.1]} 60... Rf4 {[%clk 0:00:09]} 61.
Rg8+ {[%clk 0:00:10.3]} 61... Kh4 {[%clk 0:00:08.6]} 62. Rg7 {[%clk 0:00:07.3]}
62... Rg4 {[%clk 0:00:07.5]} 63. Ra7 {[%clk 0:00:05.1]} 63... f4 {[%clk
0:00:06.7]} 64. Kf3 {[%clk 0:00:04]} 64... Rg3+ {[%clk 0:00:04]} 65. Kxf4 {[%clk
0:00:04.4]} 65... Rg4+ {[%clk 0:00:01.1]} 66. Kf5 {[%clk 0:00:05.1]} 1-0